bitfinex-derivatives/quotes_ETHF0:USTF0_20250828
["timestamp","ask_amount","ask_price","bid_price","bid_amount"]
[1756408989415,0.6002,4468.2,4468.1,0.0039978]
[1756408989821,3.808,4468.2,4468.1,0.0039978]
[1756408990820,3.808,4468.2,4468.1,0.5820978]
[1756408991818,3.808,4468.2,4468.1,0.0039978]
[1756408992524,0.6002,4467.5,4467.4,0.2471]
[1756408992816,3.808,4467.5,4467.4,0.64997]
[1756408993224,3.808,4467.5,4467.0,0.229]
[1756408993423,3.808,4467.5,4467.2,0.40289]
[1756408993724,3.808,4467.5,4467.0,0.229]
[1756408993925,3.808,4467.5,4467.3,0.40287]
[1756408994123,3.808,4467.5,4466.6,1.00736]
[1756408994322,3.2078,4467.5,4467.1,0.4029]
[1756408994625,0.2375,4467.2,4467.1,0.981]
[1756408995026,0.6002,4467.2,4467.1,0.981]
[1756408996131,0.2375,4467.0,4466.9,0.8071]
[1756408996329,0.2375,4467.0,4466.2,0.229]
[1756408996623,0.2375,4466.9,4466.8,0.98103]
[1756408996927,0.2375,4466.9,4466.8,1.21003]
[1756408997123,0.3627,4467.3,4467.2,0.40289]
[1756408997331,0.6002,4467.3,4467.2,0.2471]
[1756408997529,0.6002,4467.3,4467.2,0.5781]
[1756408997828,0.6002,4467.3,4467.2,0.2471]
[1756408998333,0.2375,4467.3,4466.8,0.229]
[1756408998631,0.6002,4467.0,4466.9,0.98102]
[1756408999720,0.2375,4467.0,4466.9,0.98102]
[1756408999924,0.6002,4467.4,4467.3,0.5781]
[1756409000925,0.64037,4467.4,4467.0,0.7339]
[1756409001230,0.2375,4466.5,4466.4,0.98106]
[1756409001432,0.2375,4466.5,4466.3,0.40297]
[1756409001626,0.6002,4466.4,4466.3,0.98107]
[1756409001826,0.2375,4466.4,4466.3,0.98107]
[1756409002026,0.3627,4466.8,4466.5,0.40295]
[1756409002232,0.2375,4466.6,4466.5,0.98105]
[1756409002524,0.2375,4466.6,4466.5,0.5781]
[1756409002728,0.6002,4466.6,4466.5,0.5781]
[1756409003925,0.2375,4466.8,4466.7,0.40293]
[1756409004128,0.2375,4466.8,4466.7,0.98103]
[1756409004827,0.6002,4467.3,4467.2,0.98099]
[1756409005028,0.6002,4467.3,4467.2,0.5781]
[1756409005430,0.6002,4467.3,4467.2,0.98099]
[1756409006834,0.6002,4467.3,4467.2,0.5781]
[1756409007030,1.00308,4467.3,4466.9,0.23]
[1756409007235,0.64038,4467.3,4467.0,0.4029]
[1756409007532,0.6002,4467.1,4467.0,0.981]
[1756409008129,3.808,4467.4,4467.3,0.98098]
[1756409008638,4.21087,4467.4,4467.3,0.98098]
[1756409009227,4.21087,4467.4,4467.3,0.5781]
[1756409009427,4.21087,4467.4,4467.3,0.2471]
[1756409009936,3.808,4467.4,4467.3,0.64998]
[1756409010437,3.808,4467.4,4467.3,0.98098]
[1756409010932,4.21087,4467.4,4467.3,0.98098]
[1756409011133,4.21087,4467.4,4467.3,0.5781]
[1756409011333,0.6002,4467.0,4466.9,0.88001]
[1756409011938,0.6002,4467.0,4466.9,1.21101]
[1756409012334,0.2375,4466.3,4466.2,0.98108]
[1756409012537,0.2375,4466.3,4466.2,1.43396]
[1756409012840,3.2078,4467.4,4466.7,0.40293]
[1756409012841,0.2375,4466.8,4466.7,0.40293]
[1756409013036,0.2375,4466.8,4466.7,0.65003]
[1756409013537,0.2375,4466.8,4466.7,1.21103]
[1756409015042,1.00313,4466.8,4466.7,0.8081]
[1756409015339,0.6002,4466.8,4466.7,0.8081]
[1756409015541,1.00313,4466.8,4466.7,0.23]
[1756409015741,0.6002,4466.8,4466.7,1.21104]
[1756409016239,1.00313,4466.8,4466.7,0.8081]
[1756409016834,1.00313,4466.8,4466.7,1.21104]
[1756409017036,0.6002,4466.8,4466.7,0.88004]
[1756409017344,0.3293,4467.3,4467.0,0.4029]
[1756409017536,3.2078,4467.4,4467.3,0.99698]
[1756409017736,4.17087,4467.4,4467.3,0.99698]
[1756409018039,3.768,4467.4,4467.3,0.99698]
[1756409020638,4.17087,4467.4,4467.3,0.99698]
[1756409020943,3.768,4467.9,4467.8,0.5941]
[1756409021141,3.4387,4467.9,4467.8,0.8231]
[1756409021439,3.4387,4467.9,4467.8,1.22594]
[1756409022540,3.4387,4467.9,4467.8,0.8231]
[1756409022741,3.768,4467.9,4467.8,0.8231]
[1756409022939,3.4387,4467.9,4467.8,0.8231]
[1756409023440,3.768,4467.9,4467.8,0.8231]
[1756409024738,3.2078,4467.9,4467.8,0.8231]
[1756409025344,3.2078,4468.4,4468.3,0.5941]
[1756409025738,0.3293,4468.7,4468.3,0.5941]
[1756409026034,0.3293,4468.7,4467.9,1.00707]
[1756409026035,0.2309,4468.5,4468.4,1.22588]
[1756409026238,0.5602,4468.7,4468.6,0.5941]
[1756409027743,3.2078,4468.9,4468.8,0.99685]
[1756409028336,0.2309,4468.6,4468.5,0.99687]
[1756409028533,0.2309,4468.6,4468.5,1.22687]
[1756409028534,0.5602,4468.6,4468.5,1.22687]
[1756409028840,3.768,4468.9,4468.8,0.99685]
[1756409029349,4.17074,4468.9,4468.6,0.40276]
[1756409029842,3.61054,4468.9,4468.7,0.2433]
[1756409030033,0.5602,4468.8,4468.7,0.2433]
[1756409030235,0.5602,4468.8,4468.7,0.99686]
[1756409030539,3.2078,4468.9,4468.7,0.99686]
[1756409030744,3.2078,4468.9,4468.8,0.99685]
[1756409031443,0.5602,4469.2,4469.1,0.99682]
[1756409031641,0.5602,4469.2,4469.1,1.22682]
[1756409032141,0.5602,4469.2,4469.1,0.8241]
[1756409032344,0.96291,4469.2,4469.1,0.23]
[1756409033348,0.96291,4469.2,4469.1,0.87602]
[1756409033646,0.5602,4469.2,4469.1,1.22682]
[1756409035746,0.96291,4469.2,4469.1,0.8241]
[1756409036046,0.96291,4469.2,4469.1,0.4733]
[1756409036533,0.96291,4469.2,4469.1,0.23]
[1756409037045,0.96291,4469.2,4469.1,0.63272]
[1756409037343,0.96291,4469.2,4469.1,0.23]
[1756409038039,0.96291,4469.2,4469.1,0.63272]
[1756409038440,0.5602,4469.2,4469.1,1.22682]
[1756409038946,0.96291,4469.2,4469.1,0.8241]
[1756409039746,0.96291,4469.2,4469.1,0.4733]
[1756409040642,0.96291,4469.2,4469.1,0.8241]
[1756409041149,0.96297,4468.5,4468.4,0.5941]
[1756409041341,0.40278,4468.4,4468.3,0.229]
[1756409041545,0.96298,4468.4,4468.3,0.229]
[1756409042246,0.96301,4468.1,4468.0,0.99692]
[1756409042446,0.5602,4468.1,4468.0,0.99692]
[1756409042646,0.5602,4468.5,4468.4,0.99688]
[1756409042843,3.2078,4468.9,4468.3,1.00698]
[1756409043150,0.3293,4469.4,4469.3,0.2433]
[1756409043151,0.96289,4469.4,4469.3,0.2433]
[1756409043351,0.96289,4469.4,4469.3,0.8231]
[1756409043551,0.2309,4469.4,4469.3,0.8231]
[1756409044751,0.5602,4469.4,4469.3,0.8231]
[1756409048355,0.2309,4469.4,4469.3,1.2258]
[1756409048550,0.3485,4469.8,4469.3,0.5798]
[1756409048746,0.62627,4469.6,4469.5,0.2319]
[1756409048949,0.97477,4469.6,4469.5,0.2319]
[1756409049152,0.97477,4469.6,4469.5,0.5523]
[1756409049456,0.97477,4469.6,4469.5,0.2319]
[1756409049856,0.5721,4469.6,4469.5,0.5523]
[1756409050853,0.97477,4469.6,4469.5,0.95498]
[1756409051755,0.97477,4469.6,4469.5,0.5523]
[1756409052658,0.75119,4469.4,4469.3,0.229]
[1756409052955,0.97479,4469.4,4469.3,0.7813]
[1756409054153,0.97479,4469.4,4469.3,0.229]
[1756409054960,0.97479,4469.4,4469.3,0.4609]
[1756409055158,0.5721,4469.4,4469.3,0.7813]
[1756409055362,0.2236,4469.4,4469.3,1.184]
[1756409055660,0.62629,4469.4,4469.3,0.7813]
[1756409056154,0.2236,4469.4,4469.3,0.7813]
[1756409056356,3.2078,4470.0,4469.9,0.95495]
[1756409056549,3.2078,4470.0,4469.9,1.18395]
[1756409057057,3.4314,4470.0,4469.9,1.18395]
[1756409057247,3.7799,4470.0,4469.9,0.7813]
[1756409057657,0.5721,4470.0,4469.9,0.7813]
[1756409059653,3.2078,4470.5,4470.3,0.95491]
[1756409059854,3.2078,4470.5,4470.4,0.7813]
[1756409060564,0.3485,4471.2,4470.9,0.63446]
[1756409060857,3.2078,4472.1,4471.8,0.2319]
[1756409061052,2.01163,4473.5,4472.1,0.5523]
[1756409061053,0.2236,4472.2,4472.1,0.5523]
[1756409061258,0.5721,4472.5,4472.4,0.5523]
[1756409061462,0.5721,4471.9,4471.8,0.5523]
[1756409061660,0.5721,4471.9,4471.8,0.7813]
[1756409062868,0.2236,4471.9,4471.8,0.7813]
[1756409063561,0.2236,4472.3,4472.2,0.5523]
[1756409063762,0.97451,4472.6,4472.5,0.2319]
[1756409063960,0.97451,4472.6,4472.5,0.5523]
[1756409067064,3.2078,4472.7,4472.6,0.4024]
[1756409067366,3.2078,4472.7,4472.6,0.7228]
[1756409067571,3.2078,4472.7,4472.6,0.9547]
[1756409068070,0.5721,4472.8,4472.7,0.72279]
[1756409068258,3.7799,4472.8,4472.7,0.95469]
[1756409068464,3.7799,4472.8,4472.7,0.5523]
[1756409068669,0.5721,4472.8,4472.7,0.5523]
[1756409068861,3.2078,4473.3,4473.1,0.40236]
[1756409069067,0.5721,4473.2,4473.1,0.95466]
[1756409069367,0.2236,4473.2,4473.1,0.95466]
[1756409070165,0.5721,4473.5,4473.4,0.5523]
[1756409070369,0.40233,4473.4,4473.0,0.63136]
[1756409070565,0.2236,4473.2,4473.1,0.2319]
[1756409071166,0.2236,4473.2,4473.1,0.5523]
[1756409072072,0.5721,4473.4,4473.3,0.5523]
[1756409072575,3.7799,4473.9,4473.8,0.2319]
[1756409072866,0.2236,4474.2,4474.1,0.95457]
[1756409073067,0.5721,4474.7,4474.6,0.5523]
[1756409073271,0.5721,4474.7,4474.6,0.7813]
[1756409073677,0.2236,4474.7,4474.6,0.7813]
[1756409074069,0.5721,4474.7,4474.6,0.7813]
[1756409074473,3.7799,4474.7,4474.6,0.229]
[1756409075276,0.2236,4473.9,4473.8,0.229]
[1756409075477,3.7799,4473.9,4473.8,0.229]
[1756409075679,3.7799,4473.9,4473.8,0.4609]
[1756409075980,3.7799,4473.9,4473.8,0.7813]
[1756409077081,0.5793,4473.6,4473.5,32.7658]
[1756409077384,0.5793,4473.6,4473.5,32.44]
[1756409079781,0.5793,4473.6,4473.5,0.229]
[1756409083182,0.5793,4473.6,4473.5,0.4613]
[1756409083389,0.5793,4473.6,4473.5,0.7871]
[1756409083683,0.5793,4473.6,4473.5,0.2323]
[1756409083888,0.5793,4473.6,4473.0,0.40236]
[1756409084281,0.2304,4473.6,4473.0,0.72816]
[1756409084487,3.61013,4473.4,4473.3,0.2323]
[1756409084787,3.84053,4473.4,4473.3,0.5581]
[1756409085180,4.18943,4473.4,4473.3,0.5581]
[1756409088093,0.98167,4473.0,4472.9,0.4613]
[1756409088695,0.98167,4473.0,4472.9,0.229]
[1756409089593,0.98175,4472.1,4472.0,32.5288]
[1756409089889,0.98175,4472.1,4472.0,32.7578]
[1756409090291,0.40247,4471.9,4471.6,0.40249]
[1756409090590,0.98177,4471.9,4471.7,0.3258]
[1756409090794,0.98179,4471.6,4471.5,0.7871]
[1756409091187,0.98179,4471.6,4471.5,0.229]
[1756409091389,0.98185,4471.0,4470.9,0.5581]
[1756409092194,3.61033,4471.2,4471.1,0.2323]
[1756409092493,0.40252,4471.4,4471.1,0.7871]
[1756409092697,0.3489,4471.8,4471.2,0.3258]
[1756409092994,0.63292,4471.3,4471.2,0.5581]
[1756409093196,0.98182,4471.3,4471.2,0.5581]
[1756409094894,0.98182,4471.3,4471.2,0.2323]
[1756409095198,0.98182,4471.3,4471.1,0.229]
[1756409095502,0.5793,4471.2,4471.1,0.7871]
[1756409097095,0.2304,4471.2,4471.1,0.7871]
[1756409097296,0.5793,4471.2,4471.1,0.7871]
[1756409097496,0.2304,4471.2,4471.1,0.7871]
[1756409098294,0.5793,4471.2,4471.1,0.229]
[1756409099691,0.5793,4471.2,4471.1,0.4613]
[1756409099893,0.5793,4471.2,4471.1,0.7871]
[1756409100298,0.5793,4471.2,4471.1,0.4613]
[1756409101296,0.5793,4471.2,4471.1,0.7871]
[1756409101498,0.98183,4471.2,4471.1,0.7871]
[1756409102500,0.98183,4471.2,4471.1,0.4613]
[1756409102695,0.98183,4471.2,4471.1,0.229]
[1756409102895,0.98183,4471.2,4471.1,0.7871]
[1756409103294,0.2304,4470.4,4470.3,32.201]
[1756409103491,0.98192,4470.2,4470.1,3.4368]
[1756409103697,0.98192,4470.2,4470.1,3.6691]
[1756409103898,0.98192,4470.2,4470.1,0.7871]
[1756409104294,0.5793,4470.2,4470.1,0.7871]
[1756409104496,0.98192,4470.2,4470.1,0.7871]
[1756409104699,0.5793,4470.2,4470.1,0.7871]
[1756409104898,0.5793,4470.2,4470.1,1.18973]
[1756409105300,0.5793,4470.2,4470.1,0.7871]
[1756409105501,0.98192,4470.2,4470.1,0.7871]
[1756409108504,3.2078,4470.4,4469.6,0.2331]
[1756409108696,0.5497,4469.4,4469.3,0.229]
[1756409108896,0.95239,4469.4,4469.3,0.7996]
[1756409109101,0.95239,4469.4,4469.3,0.229]
[1756409109303,0.95239,4469.4,4469.3,0.5665]
[1756409109506,0.95239,4469.4,4469.3,0.7996]
[1756409110105,0.95239,4469.4,4469.3,0.4621]
[1756409112009,0.95239,4469.4,4469.3,0.229]
[1756409112401,4.16019,4469.4,4469.3,0.229]
[1756409112604,3.5255,4469.4,4468.7,0.3375]
[1756409112807,0.95245,4468.8,4468.7,0.5706]
[1756409113007,0.5497,4468.8,4468.7,0.5706]
[1756409114004,3.2078,4469.4,4468.7,0.2331]
[1756409114206,3.4398,4469.9,4469.8,0.5706]
[1756409114711,3.7575,4469.9,4469.8,0.5706]
[1756409115108,3.4398,4469.9,4469.8,0.5706]
[1756409115311,3.2078,4469.9,4469.8,0.5706]
[1756409116212,3.7575,4469.9,4469.8,0.5706]
[1756409116403,3.2078,4469.9,4469.8,0.5706]
[1756409117813,3.2078,4470.4,4469.8,0.2331]
[1756409118013,0.232,4470.0,4469.9,0.2331]
[1756409118214,0.232,4470.0,4469.9,0.63575]
[1756409118414,0.232,4470.0,4469.9,0.97325]
[1756409118610,0.5497,4470.0,4469.9,0.97325]
[1756409119111,0.5497,4470.0,4469.9,0.5706]
[1756409119413,0.95236,4469.8,4469.7,0.5706]
[1756409119603,0.95236,4469.8,4469.7,0.2331]
[1756409119803,0.95236,4469.8,4469.6,0.229]
[1756409120005,0.5497,4469.7,4469.6,0.7996]
[1756409121216,3.4398,4470.4,4470.3,0.2331]
[1756409121407,0.40263,4470.1,4470.0,0.2331]
[1756409121715,0.95233,4470.1,4470.0,0.2331]
[1756409121917,0.95236,4469.8,4469.6,0.229]
[1756409122111,0.5497,4469.7,4469.6,1.20227]
[1756409122612,0.232,4469.7,4469.6,1.20227]
[1756409122814,0.5497,4470.3,4470.2,0.97321]
[1756409123014,3.2078,4470.4,4469.9,0.3375]
[1756409123214,0.5497,4469.9,4469.8,0.63575]
[1756409123410,0.5497,4469.9,4469.8,0.97325]
[1756409125015,0.232,4469.9,4469.8,0.97325]
[1756409125216,0.5497,4469.9,4469.8,0.97325]
[1756409125714,0.232,4469.9,4469.8,0.97325]
[1756409126310,0.5497,4469.9,4469.8,0.97325]
[1756409126810,0.232,4469.9,4469.8,0.74015]
[1756409127011,0.95235,4469.9,4469.8,0.63575]
[1756409127216,0.5497,4469.9,4469.8,0.97325]
[1756409127815,0.232,4469.9,4469.8,0.97325]
[1756409128316,0.5497,4470.2,4470.1,0.97323]
[1756409129007,0.3177,4470.6,4470.5,0.40259]
[1756409129212,3.7575,4471.0,4470.9,0.97316]
[1756409129412,0.5497,4471.4,4471.3,0.74002]
[1756409129614,3.2078,4471.5,4471.4,0.3375]
[1756409129815,3.2078,4471.5,4471.4,0.5706]
[1756409130312,0.00273315,4471.8,4471.2,0.229]
[1756409130614,0.23473315,4471.8,4471.7,0.5706]
[1756409130820,0.00273315,4471.8,4471.7,0.7996]
[1756409131422,0.00273315,4471.8,4471.7,4.7996]
[1756409131617,0.00273315,4471.8,4471.7,8.0074]
[1756409133222,3.4398,4472.7,4472.6,0.5706]
[1756409133517,1.00567,4474.2,4472.6,0.5706]
[1756409133518,3.7575,4473.2,4473.1,0.2331]
[1756409133820,3.7575,4473.2,4473.1,0.5706]
[1756409134214,0.5497,4473.2,4473.1,0.5706]
[1756409135922,0.95206,4473.1,4473.0,0.7996]
[1756409136722,0.232,4473.1,4473.0,0.7996]
[1756409137121,0.5485,4473.1,4473.0,0.7996]
[1756409137616,0.40243,4472.3,4472.0,0.40245]
[1756409137824,3.2078,4472.7,4472.2,0.3238]
[1756409138120,0.5235,4472.7,4472.6,0.5521]
[1756409138319,0.5235,4472.7,4472.6,0.7811]
[1756409138725,0.5235,4472.7,4472.6,0.229]
[1756409139319,0.3165,4472.6,4472.5,0.229]
[1756409139619,0.5235,4472.6,4472.5,0.7811]
[1756409139820,0.5235,4472.6,4472.5,0.5521]
[1756409140212,0.5235,4472.6,4472.5,0.7811]
[1756409140416,0.5235,4472.6,3825.0,0.25]
[1756409140417,0.5235,4471.9,4471.6,3.2078]
[1756409140616,0.40257,4470.8,4470.5,32.223]
[1756409140923,0.5235,4470.6,4470.5,0.5521]
[1756409141918,0.207,4470.4,4470.3,0.5528]
[1756409142114,0.207,4470.4,4470.3,0.7811]
[1756409142424,0.5235,4470.4,4470.3,0.7811]
[1756409143628,0.5235,4470.4,4470.3,0.229]
[1756409144416,0.5235,4470.4,4470.3,0.7811]
[1756409144827,0.5235,4470.4,4470.3,0.4573]
[1756409145128,0.92617,4469.7,4469.6,0.5521]
[1756409145322,0.92617,4469.7,4469.6,0.7811]
[1756409145626,0.5235,4469.7,4469.6,0.7811]
[1756409148730,0.207,4469.7,4469.6,0.7811]
[1756409149228,0.40264,4470.0,4469.6,1.18377]
[1756409149427,0.92614,4470.0,4469.9,0.2283]
[1756409149628,0.92614,4470.0,4469.9,0.5521]
[1756409150226,0.5235,4470.0,4469.9,0.5521]
[1756409150731,0.92617,4469.7,4469.6,0.7811]
[1756409150926,0.92617,4469.7,4469.6,0.4573]
[1756409151126,0.92617,4469.7,4469.6,0.229]
[1756409151330,0.92617,4469.7,4469.6,0.4573]
[1756409152528,0.207,4468.6,4468.5,0.5521]
[1756409152924,0.5235,4468.6,4468.5,0.5521]
[1756409154032,0.207,4468.6,4468.5,0.5521]
[1756409154226,0.3165,4468.9,4468.5,0.2283]
[1756409154428,3.92702,4469.1,4469.0,0.2283]
[1756409154628,4.13402,4469.1,4469.0,0.5521]
[1756409155833,3.4148,4469.1,4469.0,0.5521]
[1756409156331,3.2078,4469.1,4469.0,0.5521]
[1756409156723,3.4148,4469.1,4469.0,0.5521]
[1756409156921,3.7313,4469.1,4469.0,0.5521]
[1756409157631,3.4148,4469.1,4469.0,0.5521]
[1756409158335,3.2078,4469.1,4469.0,0.5521]
[1756409158535,3.2078,4469.6,4469.5,0.95478]
[1756409158731,3.2078,4470.1,4470.0,0.40263]
[1756409158931,3.2078,4470.1,4470.0,0.5521]
[1756409159136,3.7313,4470.1,4470.0,0.7811]
[1756409161040,3.7313,4470.1,4470.0,0.229]
[1756409161238,0.5235,4469.2,4469.1,0.5521]
[1756409162635,0.3165,4469.5,4469.1,0.2283]
[1756409162841,0.5235,4469.5,4469.4,0.5521]
[1756409163939,0.207,4469.5,4469.4,0.5521]
[1756409164439,0.5235,4469.5,4469.4,0.5521]
[1756409165141,0.5235,4469.5,4469.4,0.2283]
[1756409165439,0.92618,4469.5,4469.4,0.2283]
[1756409165632,0.5235,4469.3,4469.2,0.63101]
[1756409165838,0.5235,4469.3,4469.2,0.95481]
[1756409166934,0.2042,4468.5,4468.3,0.3117]
[1756409167138,0.5192,4468.5,4468.4,33.15648]
[1756409167336,0.2042,4468.5,4468.4,33.15648]
[1756409167539,0.5192,4468.9,4468.8,0.92695]
[1756409168145,0.5192,4468.9,4468.8,0.5242]
[1756409168444,0.92194,4468.9,4468.8,0.5242]
[1756409170836,0.5192,4468.9,4468.8,0.5242]
[1756409171040,0.5192,4468.9,4468.8,0.92695]
[1756409171659,0.92194,4468.9,4468.8,0.7532]
[1756409173442,0.60697,4468.5,4468.4,0.5242]
[1756409173750,0.5192,4467.9,4467.8,0.63183]
[1756409174042,0.5192,4467.9,4467.8,1.15603]
[1756409174947,0.5192,4467.9,4467.8,0.7532]
[1756409175650,0.5192,4467.9,4467.8,1.15604]
[1756409175949,0.5192,4467.9,4467.8,0.7532]
[1756409176144,0.5192,4467.9,4467.8,1.15604]
[1756409177252,0.5192,4467.9,4467.8,0.7532]
[1756409185154,0.2042,4467.7,4467.6,0.2125]
[1756409185357,0.5192,4467.7,4467.6,0.7532]
[1756409185652,0.5192,4467.7,4467.6,1.15606]
[1756409185854,0.92203,4468.0,4467.9,0.5242]
[1756409186561,0.5192,4468.0,4467.9,0.92703]
[1756409186753,0.315,4468.4,4467.9,0.61533]
[1756409186960,0.92201,4468.1,4468.0,0.5242]
[1756409187562,0.92201,4468.1,4468.0,0.92702]
[1756409187764,0.92201,4468.1,4468.0,0.5242]
[1756409188564,0.92201,4468.1,4468.0,0.92702]
[1756409188966,0.5192,4468.1,4468.0,0.92702]
[1756409189256,0.92201,4468.1,4468.0,0.5242]
[1756409190055,0.5192,4468.1,4468.0,0.5242]
[1756409190358,0.5192,4468.1,4468.0,0.92702]
[1756409190559,0.2042,4468.1,4468.0,0.92702]
[1756409191159,0.60701,4468.1,4468.0,0.5242]
[1756409191365,0.92201,4468.1,4468.0,0.5242]
[1756409192965,0.5192,4468.1,4468.0,0.92702]
[1756409193170,0.92201,4468.1,4468.0,0.5242]
[1756409193762,0.92201,4468.1,4468.0,0.3117]
[1756409194063,0.92202,4468.0,4467.9,0.5242]
[1756409194267,0.5192,4468.0,4467.9,0.92703]
[1756409194472,0.5192,4468.0,4467.9,0.5242]
[1756409194671,0.92202,4468.0,4467.9,0.5242]
[1756409195071,0.5192,4468.0,4467.9,0.92703]
[1756409198172,0.40281,4468.2,4468.1,0.40281]
[1756409198771,0.60921,4468.2,4468.1,0.40281]
[1756409198978,0.92431,4468.2,4468.1,0.5012]
[1756409199669,0.2064,4468.0,4467.9,0.5012]
[1756409199869,0.5215,4468.0,4467.9,0.5012]
[1756409200270,0.5215,4468.0,4467.9,0.90403]
[1756409202472,0.92432,4468.0,4467.9,0.5012]
[1756409203773,0.2064,4467.4,4467.2,0.40289]
[1756409204073,0.5215,4467.2,4467.1,1.1331]
[1756409204671,0.5215,4467.2,4467.1,0.7302]
[1756409204875,0.5215,4467.2,4467.1,1.1331]
[1756409208980,0.92439,4467.2,4467.1,0.7302]
[1756409209275,0.2064,4466.6,4466.5,0.5012]
[1756409209482,0.5215,4466.6,4466.5,1.13316]
[1756409209673,3.7293,4467.3,4467.2,0.90409]
[1756409209876,4.13219,4467.3,4467.2,0.5012]
[1756409211683,4.13219,4467.3,4467.2,0.90409]
[1756409212185,0.5215,4466.7,4466.6,0.90415]
[1756409212382,0.5215,4467.2,4467.1,0.9041]
[1756409212987,0.92439,4467.2,4467.1,0.9041]
[1756409213184,0.92439,4467.2,4467.1,0.5012]
[1756409213485,0.92439,4467.2,4467.1,0.9041]
[1756409214784,0.5215,4467.2,4467.1,0.9041]
[1756409215186,0.2064,4467.2,4467.1,0.9041]
[1756409215387,0.92439,4467.2,4467.1,0.9041]
[1756409215790,0.92439,4467.2,4467.1,0.5012]
[1756409215988,0.92439,4467.2,4467.1,0.9041]
[1756409216188,0.92439,4467.2,4467.1,0.2048]
[1756409216390,0.9244,4467.1,4467.0,0.90411]
[1756409217789,0.5215,4467.1,4467.0,0.90411]
[1756409217985,0.9244,4467.1,4467.0,0.90411]
[1756409218688,0.5215,4467.1,4467.0,0.90411]
[1756409219189,0.9244,4467.1,4467.0,0.90411]
[1756409220088,0.5215,4467.1,4467.0,0.90411]
[1756409220989,0.5215,4468.3,4468.2,0.904]
[1756409221186,0.5215,4468.3,4468.2,0.5012]
[1756409222381,3.5229,4468.9,4468.7,0.69916]
[1756409222587,0.5215,4468.9,4468.8,0.5012]
[1756409222887,0.2064,4468.9,4468.8,0.5012]
[1756409223484,0.2064,4469.1,4468.8,0.2964]
[1756409223792,0.2064,4469.1,4469.0,0.5012]
[1756409224388,0.5215,4469.1,4469.0,0.5012]
[1756409227588,0.5211,4468.8,4468.7,0.5434]
[1756409227986,0.40272,4469.2,4468.7,0.5434]
[1756409228189,0.5211,4469.1,4469.0,0.5434]
[1756409230386,3.2078,4470.0,4469.5,0.40269]
[1756409230692,0.60406,4469.8,4469.7,0.5434]
[1756409231187,0.92376,4469.8,4469.7,0.5434]
[1756409231492,0.5211,4469.8,4469.7,0.5434]
[1756409232093,0.2014,4469.8,4469.7,0.5434]
[1756409232687,0.5211,4469.8,4469.7,0.5434]
[1756409232883,0.40264,4470.1,4470.0,0.2144]
[1756409233088,0.40264,4470.1,4469.9,0.329]
[1756409233089,0.5211,4470.3,4470.2,0.5434]
[1756409233983,0.72227,4470.9,4470.8,0.5434]
[1756409234189,3.2078,4471.0,4470.2,0.2237]
[1756409234190,3.2078,4471.0,4470.9,0.73156]
[1756409234390,3.2078,4471.0,4470.9,0.94596]
[1756409234692,3.4092,4471.0,4470.9,0.5434]
[1756409234900,0.2014,4471.0,4470.9,0.5434]
[1756409235091,0.3197,4471.3,4470.9,0.5434]
[1756409235398,3.2078,4471.5,4471.4,0.5434]
[1756409236093,0.3197,4471.7,4471.4,0.2144]
[1756409236288,0.40247,4471.9,4471.6,0.5434]
[1756409236491,0.60384,4472.3,4471.7,0.40248]
[1756409236690,0.3197,4472.5,4472.2,0.40244]
[1756409236898,3.2078,4472.6,4472.4,0.2144]
[1756409237192,3.2078,4472.6,4472.3,0.229]
[1756409237193,0.2014,4472.7,4472.6,0.5434]
[1756409237499,0.92345,4473.2,4473.1,0.5434]
[1756409237694,0.2014,4472.9,4472.8,0.229]
[1756409237890,0.60382,4472.5,4472.3,3.5368]
[1756409238097,0.5211,4472.5,4472.4,0.7724]
[1756409238593,0.60379,4472.9,4472.8,0.5434]
[1756409238793,0.40237,4473.1,4472.8,0.2144]
[1756409238998,0.60377,4473.1,4473.0,0.5434]
[1756409239293,0.2014,4473.1,4473.0,0.5434]
[1756409239493,0.5211,4473.7,4473.6,0.5434]
[1756409240595,3.2078,4474.3,4473.6,0.5434]
[1756409240596,3.2078,4474.3,4473.6,0.2144]
[1756409240794,0.2014,4473.9,4473.8,0.61669]
[1756409241099,0.5211,4473.9,4473.8,0.84569]
[1756409241294,0.5211,4473.9,4473.8,1.17469]
[1756409242091,0.5211,4473.9,4473.8,4.38249]
[1756409242289,0.2014,4474.1,4474.0,0.40228]
[1756409242493,0.2014,4474.3,4474.2,0.61666]
[1756409242899,0.2014,4474.3,4474.2,0.94566]
[1756409243096,0.5211,4474.3,4474.2,0.5434]
[1756409243493,0.3197,4474.8,4474.2,0.5434]
[1756409243693,0.3197,4474.8,4473.8,4.44253]
[1756409243694,0.92331,4474.8,4474.7,0.5434]
[1756409244498,0.2014,4475.3,4475.2,0.2144]
[1756409244699,0.5211,4475.3,4475.2,0.5434]
[1756409244998,0.5211,4475.9,4475.8,0.5434]
[1756409245300,0.2014,4475.9,4475.8,0.5434]
[1756409245500,3.2078,4476.7,4476.3,0.40208]
[1756409245709,0.5211,4476.7,4476.6,0.2144]
[1756409245901,0.2014,4476.3,4476.2,0.4434]
[1756409246097,0.72178,4476.2,4475.9,0.229]
[1756409246305,0.9232,4476.0,4475.9,0.229]